[Event "Titled Tuesday Blitz May 30 Early 2023"]
[White "Iskusnyh, Sergei"]
[Black "Papasimakopoulos, Alexandros"]
[WhiteFideId "4120027"]
[BlackFideId "4244125"]
[WhiteElo "2492"]
[BlackElo "2359"]
[Result "0-1"]
[Round "09"]
[TimeControl "180+2"]
[Date "2023.05.30"]
[WhiteClock "0:00:00"]
[BlackClock "0:00:05"]

1. d4 {[%clk 0:03:00]}  e6 {[%clk 0:01:11]} 2. c4 {[%clk 0:02:58]}  Nf6 {[%clk 0:01:11]} 3. g3 {[%clk 0:02:57]}  Bb4+ {[%clk 0:01:12]} 4. Bd2 {[%clk 0:02:56]}  Be7 {[%clk 0:01:12]} 5. Bg2 {[%clk 0:02:56]}  d5 {[%clk 0:01:13]} 6. Nf3 {[%clk 0:02:56]}  O-O {[%clk 0:01:13]} 7. O-O {[%clk 0:02:55]}  c6 {[%clk 0:01:13]} 8. Qc2 {[%clk 0:02:55]}  Ne4 {[%clk 0:01:14]} 9. Bf4 {[%clk 0:02:46]}  Nd7 {[%clk 0:01:14]} 10. Nc3 {[%clk 0:02:43]}  f5 {[%clk 0:01:15]} 11. Rad1 {[%clk 0:02:41]}  g5 {[%clk 0:01:14]} 12. Bc1 {[%clk 0:02:40]}  g4 {[%clk 0:01:14]} 13. Ne1 {[%clk 0:02:36]}  h5 {[%clk 0:01:08]} 14. Nd3 {[%clk 0:02:35]}  Bg5 {[%clk 0:01:08]} 15. Bxg5 {[%clk 0:02:30]}  Qxg5 {[%clk 0:01:08]} 16. Nf4 {[%clk 0:02:31]}  Ndf6 {[%clk 0:01:07]} 17. f3 {[%clk 0:02:14]}  Nxc3 {[%clk 0:01:04]} 18. Qxc3 {[%clk 0:02:11]}  h4 {[%clk 0:01:05]} 19. Qe3 {[%clk 0:02:06]}  hxg3 {[%clk 0:01:04]} 20. hxg3 {[%clk 0:02:06]}  gxf3 {[%clk 0:01:03]} 21. exf3 {[%clk 0:01:25]}  Qxg3 {[%clk 0:00:57]} 22. Nxe6 {[%clk 0:01:24]}  Bxe6 {[%clk 0:00:48]} 23. Qxe6+ {[%clk 0:01:23]}  Rf7 {[%clk 0:00:49]} 24. Rf2 {[%clk 0:01:13]}  Re8 {[%clk 0:00:46]} 25. Qxf5 {[%clk 0:01:04]}  Ne4 {[%clk 0:00:46]} 26. Qxf7+ {[%clk 0:01:03]}  Kxf7 {[%clk 0:00:44]} 27. fxe4+ {[%clk 0:01:02]}  Ke7 {[%clk 0:00:42]} 28. cxd5 {[%clk 0:00:43]}  cxd5 {[%clk 0:00:42]} 29. e5 {[%clk 0:00:39]}  Qg4 {[%clk 0:00:32]} 30. Rd3 {[%clk 0:00:30]}  Rc8 {[%clk 0:00:27]} 31. Rc3 {[%clk 0:00:26]}  Rc4 {[%clk 0:00:15]} 32. Rxc4 {[%clk 0:00:23]}  dxc4 {[%clk 0:00:16]} 33. d5 {[%clk 0:00:24]}  b5 {[%clk 0:00:16]} 34. d6+ {[%clk 0:00:23]}  Ke6 {[%clk 0:00:16]} 35. Kh2 {[%clk 0:00:22]}  Qh4+ {[%clk 0:00:16]} 36. Bh3+ {[%clk 0:00:22]}  Kxe5 {[%clk 0:00:17]} 37. Rf5+ {[%clk 0:00:21]}  Kxd6 {[%clk 0:00:16]} 38. Rxb5 {[%clk 0:00:21]}  Qf4+ {[%clk 0:00:15]} 39. Kh1 {[%clk 0:00:19]}  Qc1+ {[%clk 0:00:14]} 40. Kh2 {[%clk 0:00:19]}  Qd2+ {[%clk 0:00:14]} 41. Bg2 {[%clk 0:00:19]}  Qf4+ {[%clk 0:00:13]} 42. Kh1 {[%clk 0:00:18]}  Qd4 {[%clk 0:00:12]} 43. a4 {[%clk 0:00:17]}  Qd1+ {[%clk 0:00:11]} 44. Kh2 {[%clk 0:00:16]}  Qxa4 {[%clk 0:00:12]} 45. Rb7 {[%clk 0:00:16]}  a5 {[%clk 0:00:11]} 46. Kg3 {[%clk 0:00:15]}  Ke5 {[%clk 0:00:11]} 47. Bf3 {[%clk 0:00:15]}  Qe8 {[%clk 0:00:09]} 48. Kf2 {[%clk 0:00:13]}  Kd4 {[%clk 0:00:08]} 49. Ra7 {[%clk 0:00:09]}  Qe3+ {[%clk 0:00:09]} 50. Kg2 {[%clk 0:00:09]}  Kd3 {[%clk 0:00:08]} 51. Rb7 {[%clk 0:00:08]}  Kc2 {[%clk 0:00:06]} 52. Kg3 {[%clk 0:00:08]}  Qe5+ {[%clk 0:00:06]} 53. Kg4 {[%clk 0:00:08]}  a4 {[%clk 0:00:06]} 54. Kh3 {[%clk 0:00:07]}  Qxb2 {[%clk 0:00:05]} 55. Ra7 {[%clk 0:00:05]}  a3 {[%clk 0:00:06]} 56. Be4+ {[%clk 0:00:04]}  Kd2 {[%clk 0:00:06]} 57. Kg4 {[%clk 0:00:05]}  Qd4 {[%clk 0:00:06]} 58. Re7 {[%clk 0:00:00]}  a2 {[%clk 0:00:05]} 0-1


[Site "https://www.chess.com"]

[Event "Titled Tuesday Blitz May 30 Early 2023"]
[White "Hasangatin, Ramil"]
[Black "Sadykov, Ramil"]
[WhiteFideId "4122160"]
[BlackFideId "24113590"]
[WhiteElo "2279"]
[BlackElo "2245"]
[Result "0-1"]
[Round "09"]
[TimeControl "180+2"]
[Date "2023.05.30"]
[WhiteClock "0:00:00"]
[BlackClock "0:00:04"]

1. e4 {[%clk 0:03:00]}  c6 {[%clk 0:02:58]} 2. Nf3 {[%clk 0:03:00]}  d5 {[%clk 0:02:59]} 3. d3 {[%clk 0:03:01]}  dxe4 {[%clk 0:02:53]} 4. dxe4 {[%clk 0:03:02]}  Qxd1+ {[%clk 0:02:53]} 5. Kxd1 {[%clk 0:03:02]}  Nf6 {[%clk 0:02:52]} 6. Nfd2 {[%clk 0:03:02]}  e5 {[%clk 0:02:48]} 7. f3 {[%clk 0:03:02]}  Be6 {[%clk 0:02:45]} 8. Bc4 {[%clk 0:03:00]}  Bxc4 {[%clk 0:02:32]} 9. Nxc4 {[%clk 0:03:01]}  Nfd7 {[%clk 0:02:33]} 10. Be3 {[%clk 0:02:54]}  f6 {[%clk 0:02:33]} 11. a4 {[%clk 0:02:53]}  a5 {[%clk 0:02:27]} 12. Nbd2 {[%clk 0:02:53]}  Bc5 {[%clk 0:02:20]} 13. Ke2 {[%clk 0:02:36]}  Ke7 {[%clk 0:02:17]} 14. Nb3 {[%clk 0:02:28]}  Bxe3 {[%clk 0:02:14]} 15. Kxe3 {[%clk 0:02:27]}  b6 {[%clk 0:02:00]} 16. Rhd1 {[%clk 0:02:27]}  Ra7 {[%clk 0:01:45]} 17. Rd2 {[%clk 0:02:26]}  Na6 {[%clk 0:01:33]} 18. Rad1 {[%clk 0:02:25]}  Rb8 {[%clk 0:01:33]} 19. Rd6 {[%clk 0:02:14]}  Rc7 {[%clk 0:01:33]} 20. g3 {[%clk 0:01:58]}  Nac5 {[%clk 0:01:29]} 21. Nxc5 {[%clk 0:01:57]}  Nxc5 {[%clk 0:01:30]} 22. b3 {[%clk 0:01:56]}  Ne6 {[%clk 0:01:18]} 23. R6d2 {[%clk 0:01:45]}  Rbb7 {[%clk 0:01:11]} 24. Nd6 {[%clk 0:01:38]}  Rb8 {[%clk 0:01:10]} 25. Nf5+ {[%clk 0:01:33]}  Ke8 {[%clk 0:01:08]} 26. Rd6 {[%clk 0:01:28]}  Nc5 {[%clk 0:00:58]} 27. f4 {[%clk 0:01:13]}  g6 {[%clk 0:00:53]} 28. Nh6 {[%clk 0:01:13]}  exf4+ {[%clk 0:00:43]} 29. gxf4 {[%clk 0:01:13]}  Ke7 {[%clk 0:00:37]} 30. Ng4 {[%clk 0:01:07]}  Rd7 {[%clk 0:00:27]} 31. e5 {[%clk 0:00:57]}  fxe5 {[%clk 0:00:25]} 32. fxe5 {[%clk 0:00:57]}  Rbd8 {[%clk 0:00:23]} 33. Rxd7+ {[%clk 0:00:45]}  Rxd7 {[%clk 0:00:24]} 34. Rf1 {[%clk 0:00:39]}  Rd5 {[%clk 0:00:20]} 35. h4 {[%clk 0:00:11]}  h5 {[%clk 0:00:20]} 36. Nf6 {[%clk 0:00:11]}  Rxe5+ {[%clk 0:00:20]} 37. Kd4 {[%clk 0:00:11]}  Re6 {[%clk 0:00:18]} 38. Nh7 {[%clk 0:00:11]}  Re4+ {[%clk 0:00:18]} 39. Kc3 {[%clk 0:00:10]}  Rxh4 {[%clk 0:00:19]} 40. Ng5 {[%clk 0:00:10]}  Ne4+ {[%clk 0:00:17]} 41. Nxe4 {[%clk 0:00:09]}  Rxe4 {[%clk 0:00:18]} 42. Rg1 {[%clk 0:00:08]}  Kf6 {[%clk 0:00:18]} 43. Kd3 {[%clk 0:00:08]}  Re5 {[%clk 0:00:17]} 44. Kd4 {[%clk 0:00:08]}  Rg5 {[%clk 0:00:13]} 45. Re1 {[%clk 0:00:07]}  h4 {[%clk 0:00:13]} 46. Re8 {[%clk 0:00:06]}  h3 {[%clk 0:00:13]} 47. Rf8+ {[%clk 0:00:07]}  Kg7 {[%clk 0:00:09]} 48. Rf2 {[%clk 0:00:07]}  Rh5 {[%clk 0:00:06]} 49. Rh2 {[%clk 0:00:07]}  Kf6 {[%clk 0:00:06]} 50. Ke4 {[%clk 0:00:07]}  g5 {[%clk 0:00:03]} 51. Kf3 {[%clk 0:00:07]}  Kf5 {[%clk 0:00:04]} 52. Kg3 {[%clk 0:00:07]}  g4 {[%clk 0:00:04]} 53. Rf2+ {[%clk 0:00:07]}  Kg5 {[%clk 0:00:03]} 54. Kh2 {[%clk 0:00:05]}  Kh4 {[%clk 0:00:03]} 55. Rf4 {[%clk 0:00:04]}  Rd5 {[%clk 0:00:03]} 56. Rc4 {[%clk 0:00:02]}  Rd2+ {[%clk 0:00:03]} 57. Kh1 {[%clk 0:00:03]}  Kg3 {[%clk 0:00:03]} 58. Rc3+ {[%clk 0:00:00]}  Kf2 {[%clk 0:00:04]} 0-1


[Site "https://www.chess.com"]

[Event "Titled Tuesday Blitz May 30 Early 2023"]
[White "Kleiman, Jake"]
[Black "Djordjevic, Vuk"]
[WhiteFideId "2020041"]
[BlackFideId "902098"]
[WhiteElo "2606"]
[BlackElo "2452"]
[Result "0-1"]
[Round "09"]
[TimeControl "180+2"]
[Date "2023.05.30"]
[WhiteClock "0:00:05"]
[BlackClock "0:00:06"]

1. e4 {[%clk 0:03:00]}  e6 {[%clk 0:02:58]} 2. d3 {[%clk 0:02:59]}  d5 {[%clk 0:02:59]} 3. Qe2 {[%clk 0:03:00]}  Be7 {[%clk 0:02:47]} 4. Nf3 {[%clk 0:03:00]}  Nf6 {[%clk 0:02:47]} 5. g3 {[%clk 0:03:00]}  c5 {[%clk 0:02:43]} 6. Bg2 {[%clk 0:03:01]}  O-O {[%clk 0:02:41]} 7. O-O {[%clk 0:03:01]}  b5 {[%clk 0:02:41]} 8. e5 {[%clk 0:03:02]}  Nfd7 {[%clk 0:02:41]} 9. c4 {[%clk 0:03:03]}  bxc4 {[%clk 0:02:37]} 10. dxc4 {[%clk 0:03:04]}  Ba6 {[%clk 0:02:30]} 11. b3 {[%clk 0:03:04]}  Nc6 {[%clk 0:02:29]} 12. Bf4 {[%clk 0:03:02]}  Nb6 {[%clk 0:02:24]} 13. Na3 {[%clk 0:03:01]}  Rc8 {[%clk 0:02:21]} 14. Rad1 {[%clk 0:02:56]}  Nd4 {[%clk 0:02:15]} 15. Qb2 {[%clk 0:02:40]}  dxc4 {[%clk 0:02:10]} 16. bxc4 {[%clk 0:02:29]}  Nxc4 {[%clk 0:02:08]} 17. Nxc4 {[%clk 0:02:29]}  Bxc4 {[%clk 0:02:08]} 18. Rfe1 {[%clk 0:02:15]}  Qa5 {[%clk 0:01:50]} 19. Nxd4 {[%clk 0:02:05]}  cxd4 {[%clk 0:01:51]} 20. Qxd4 {[%clk 0:02:04]}  Bb4 {[%clk 0:01:50]} 21. Bd2 {[%clk 0:01:50]}  Bxd2 {[%clk 0:01:38]} 22. Qxd2 {[%clk 0:01:51]}  Qxa2 {[%clk 0:01:37]} 23. Qxa2 {[%clk 0:01:26]}  Bxa2 {[%clk 0:01:38]} 24. Rd7 {[%clk 0:01:26]}  a6 {[%clk 0:01:08]} 25. Bf1 {[%clk 0:01:23]}  Bd5 {[%clk 0:00:57]} 26. Bxa6 {[%clk 0:01:20]}  Rb8 {[%clk 0:00:57]} 27. Bf1 {[%clk 0:01:18]}  g5 {[%clk 0:00:50]} 28. Bg2 {[%clk 0:01:16]}  Bc4 {[%clk 0:00:50]} 29. h4 {[%clk 0:01:13]}  gxh4 {[%clk 0:00:50]} 30. Re4 {[%clk 0:01:13]}  Bb5 {[%clk 0:00:41]} 31. Rc7 {[%clk 0:01:03]}  hxg3 {[%clk 0:00:39]} 32. Rg4+ {[%clk 0:01:03]}  Kh8 {[%clk 0:00:35]} 33. Rxg3 {[%clk 0:01:04]}  Rbd8 {[%clk 0:00:33]} 34. Be4 {[%clk 0:00:53]}  Rd4 {[%clk 0:00:28]} 35. Bc2 {[%clk 0:00:38]}  Rh4 {[%clk 0:00:19]} 36. Kg2 {[%clk 0:00:30]}  Bc4 {[%clk 0:00:18]} 37. Rg5 {[%clk 0:00:27]}  h6 {[%clk 0:00:11]} 38. Rg3 {[%clk 0:00:25]}  Bd5+ {[%clk 0:00:10]} 39. f3 {[%clk 0:00:26]}  Rh5 {[%clk 0:00:05]} 40. Rh3 {[%clk 0:00:17]}  Rxh3 {[%clk 0:00:04]} 41. Kxh3 {[%clk 0:00:18]}  Bxf3 {[%clk 0:00:04]} 42. Kh4 {[%clk 0:00:17]}  Kg7 {[%clk 0:00:04]} 43. Bb3 {[%clk 0:00:16]}  Kg6 {[%clk 0:00:04]} 44. Bc2+ {[%clk 0:00:15]}  Kg7 {[%clk 0:00:04]} 45. Bb3 {[%clk 0:00:15]}  Kg8 {[%clk 0:00:05]} 46. Kg3 {[%clk 0:00:14]}  Be4 {[%clk 0:00:05]} 47. Kf4 {[%clk 0:00:14]}  Bf5 {[%clk 0:00:06]} 48. Bc4 {[%clk 0:00:12]}  Rd8 {[%clk 0:00:06]} 49. Bb5 {[%clk 0:00:11]}  Rd4+ {[%clk 0:00:06]} 50. Kf3 {[%clk 0:00:10]}  Rd5 {[%clk 0:00:06]} 51. Be8 {[%clk 0:00:09]}  Bg6 {[%clk 0:00:06]} 52. Kf4 {[%clk 0:00:09]}  Rd4+ {[%clk 0:00:07]} 53. Kf3 {[%clk 0:00:10]}  Kf8 {[%clk 0:00:07]} 54. Rc8 {[%clk 0:00:09]}  Kg7 {[%clk 0:00:03]} 55. Rc7 {[%clk 0:00:09]}  Rd5 {[%clk 0:00:04]} 56. Kf4 {[%clk 0:00:09]}  Rd4+ {[%clk 0:00:05]} 57. Kf3 {[%clk 0:00:09]}  Rd1 {[%clk 0:00:04]} 58. Ra7 {[%clk 0:00:09]}  Rf1+ {[%clk 0:00:04]} 59. Kg3 {[%clk 0:00:09]}  Re1 {[%clk 0:00:04]} 60. Ra5 {[%clk 0:00:09]}  Re3+ {[%clk 0:00:04]} 61. Kf4 {[%clk 0:00:09]}  Re4+ {[%clk 0:00:04]} 62. Kf3 {[%clk 0:00:09]}  h5 {[%clk 0:00:05]} 63. Bc6 {[%clk 0:00:09]}  Re1 {[%clk 0:00:05]} 64. Kf4 {[%clk 0:00:09]}  Kh6 {[%clk 0:00:05]} 65. Ra8 {[%clk 0:00:09]}  Rf1+ {[%clk 0:00:05]} 66. Kg3 {[%clk 0:00:08]}  Kg5 {[%clk 0:00:06]} 67. Ra4 {[%clk 0:00:08]}  Rg1+ {[%clk 0:00:05]} 68. Kh2 {[%clk 0:00:08]}  Re1 {[%clk 0:00:06]} 69. Ra5 {[%clk 0:00:07]}  Kf4 {[%clk 0:00:06]} 70. Be8 {[%clk 0:00:06]}  Rxe5 {[%clk 0:00:06]} 71. Ra7 {[%clk 0:00:06]}  Rf5 {[%clk 0:00:07]} 72. Kh3 {[%clk 0:00:06]}  Kg5 {[%clk 0:00:07]} 73. Kg3 {[%clk 0:00:07]}  h4+ {[%clk 0:00:07]} 74. Kg2 {[%clk 0:00:07]}  Bh5 {[%clk 0:00:07]} 75. Ra3 {[%clk 0:00:07]}  f6 {[%clk 0:00:07]} 76. Bd7 {[%clk 0:00:07]}  Re5 {[%clk 0:00:07]} 77. Ra4 {[%clk 0:00:06]}  Bg4 {[%clk 0:00:07]} 78. Ra2 {[%clk 0:00:06]}  Re3 {[%clk 0:00:05]} 79. Rd2 {[%clk 0:00:06]}  e5 {[%clk 0:00:05]} 80. Bc6 {[%clk 0:00:06]}  Re2+ {[%clk 0:00:05]} 81. Rxe2 {[%clk 0:00:05]}  Bxe2 {[%clk 0:00:06]} 0-1


[Site "https://www.chess.com"]

[Event "Titled Tuesday Blitz May 30 Early 2023"]
[White "Bartel, Michal"]
[Black "Matinian, Nikita"]
[WhiteFideId "1119257"]
[BlackFideId "24129100"]
[WhiteElo "2282"]
[BlackElo "2422"]
[Result "0-1"]
[Round "09"]
[TimeControl "180+2"]
[Date "2023.05.30"]
[WhiteClock "0:01:01"]
[BlackClock "0:02:09"]

1. e4 {[%clk 0:03:00]}  d6 {[%clk 0:02:58]} 2. g3 {[%clk 0:02:59]}  g6 {[%clk 0:02:58]} 3. Bg2 {[%clk 0:03:00]}  Bg7 {[%clk 0:02:58]} 4. Ne2 {[%clk 0:03:00]}  e5 {[%clk 0:02:59]} 5. O-O {[%clk 0:03:01]}  Nc6 {[%clk 0:02:59]} 6. c3 {[%clk 0:03:00]}  h5 {[%clk 0:02:58]} 7. h3 {[%clk 0:02:57]}  h4 {[%clk 0:02:57]} 8. g4 {[%clk 0:02:58]}  f5 {[%clk 0:02:54]} 9. gxf5 {[%clk 0:02:54]}  gxf5 {[%clk 0:02:54]} 10. exf5 {[%clk 0:02:34]}  Bxf5 {[%clk 0:02:54]} 11. d4 {[%clk 0:02:34]}  Qd7 {[%clk 0:02:47]} 12. Kh2 {[%clk 0:02:14]}  O-O-O {[%clk 0:02:35]} 13. Bg5 {[%clk 0:02:08]}  Bf6 {[%clk 0:02:30]} 14. Bxf6 {[%clk 0:02:07]}  Nxf6 {[%clk 0:02:31]} 15. Nd2 {[%clk 0:02:03]}  Rhg8 {[%clk 0:02:27]} 16. Rg1 {[%clk 0:02:00]}  Rxg2+ {[%clk 0:02:23]} 17. Rxg2 {[%clk 0:02:01]}  Bxh3 {[%clk 0:02:24]} 18. Rg6 {[%clk 0:01:51]}  Ng4+ {[%clk 0:02:15]} 19. Kg1 {[%clk 0:01:51]}  Qf5 {[%clk 0:02:14]} 20. Rxg4 {[%clk 0:01:51]}  Qxg4+ {[%clk 0:02:12]} 21. Ng3 {[%clk 0:01:01]}  hxg3 {[%clk 0:02:09]} 0-1


[Site "https://www.chess.com"]

[Event "Titled Tuesday Blitz May 30 Early 2023"]
[White "Prohaszka, Peter"]
[Black "Marra, Eduardo da Costa"]
[WhiteFideId "726265"]
[BlackFideId "2106990"]
[WhiteElo "2626"]
[BlackElo "2252"]
[Result "1-0"]
[Round "09"]
[TimeControl "180+2"]
[Date "2023.05.30"]
[WhiteClock "0:00:57"]
[BlackClock "0:00:38"]

1. d4 {[%clk 0:02:53]}  Nf6 {[%clk 0:02:59]} 2. c3 {[%clk 0:02:54]}  g6 {[%clk 0:03:00]} 3. Bg5 {[%clk 0:02:55]}  Bg7 {[%clk 0:02:59]} 4. Nd2 {[%clk 0:02:55]}  d5 {[%clk 0:02:59]} 5. Ngf3 {[%clk 0:02:55]}  c5 {[%clk 0:02:59]} 6. e3 {[%clk 0:02:56]}  Nc6 {[%clk 0:03:00]} 7. dxc5 {[%clk 0:02:51]}  a5 {[%clk 0:02:52]} 8. a4 {[%clk 0:02:51]}  O-O {[%clk 0:02:49]} 9. Bb5 {[%clk 0:02:49]}  Qc7 {[%clk 0:02:39]} 10. O-O {[%clk 0:02:45]}  e5 {[%clk 0:02:37]} 11. Bxf6 {[%clk 0:02:38]}  Bxf6 {[%clk 0:02:36]} 12. e4 {[%clk 0:02:39]}  Be6 {[%clk 0:02:23]} 13. exd5 {[%clk 0:02:16]}  Bxd5 {[%clk 0:02:24]} 14. Bc4 {[%clk 0:02:16]}  Rad8 {[%clk 0:02:23]} 15. Bxd5 {[%clk 0:01:41]}  Rxd5 {[%clk 0:02:24]} 16. Qb3 {[%clk 0:01:41]}  Rfd8 {[%clk 0:02:17]} 17. Ne4 {[%clk 0:01:42]}  Be7 {[%clk 0:02:16]} 18. Rad1 {[%clk 0:01:41]}  Rxd1 {[%clk 0:01:52]} 19. Rxd1 {[%clk 0:01:39]}  Kg7 {[%clk 0:01:51]} 20. g3 {[%clk 0:01:11]}  h6 {[%clk 0:01:50]} 21. Kg2 {[%clk 0:01:07]}  Rxd1 {[%clk 0:01:34]} 22. Qxd1 {[%clk 0:01:07]}  Nd8 {[%clk 0:01:35]} 23. Qd5 {[%clk 0:01:05]}  f6 {[%clk 0:01:16]} 24. Nfd2 {[%clk 0:01:05]}  Nf7 {[%clk 0:00:58]} 25. Nc4 {[%clk 0:01:02]}  h5 {[%clk 0:00:43]} 26. h4 {[%clk 0:01:01]}  Qc8 {[%clk 0:00:38]} 27. Qxf7+ {[%clk 0:00:57]} 1-0


[Site "https://www.chess.com"]

[Event "Titled Tuesday Blitz May 30 Early 2023"]
[White "Veiga, Jose Francisco R P Neves"]
[Black "Shuvalov, Evgenij"]
[WhiteFideId "1930087"]
[BlackFideId "4187237"]
[WhiteElo "2320"]
[BlackElo "2080"]
[Result "1-0"]
[Round "09"]
[TimeControl "180+2"]
[Date "2023.05.30"]
[WhiteClock "0:00:15"]
[BlackClock "0:00:00"]

1. d4 {[%clk 0:02:59]}  Nf6 {[%clk 0:02:59]} 2. Nf3 {[%clk 0:02:56]}  g6 {[%clk 0:02:59]} 3. Nc3 {[%clk 0:02:56]}  d5 {[%clk 0:02:58]} 4. Bf4 {[%clk 0:02:56]}  a6 {[%clk 0:02:57]} 5. e3 {[%clk 0:02:53]}  Bg7 {[%clk 0:02:57]} 6. Be2 {[%clk 0:02:53]}  O-O {[%clk 0:02:56]} 7. Ne5 {[%clk 0:02:54]}  b5 {[%clk 0:02:54]} 8. O-O {[%clk 0:02:51]}  Bb7 {[%clk 0:02:54]} 9. a4 {[%clk 0:02:51]}  b4 {[%clk 0:02:54]} 10. Na2 {[%clk 0:02:51]}  a5 {[%clk 0:02:54]} 11. c3 {[%clk 0:02:50]}  Na6 {[%clk 0:02:49]} 12. Rc1 {[%clk 0:02:46]}  c5 {[%clk 0:02:47]} 13. dxc5 {[%clk 0:02:38]}  Ne4 {[%clk 0:02:33]} 14. cxb4 {[%clk 0:02:33]}  g5 {[%clk 0:02:22]} 15. c6 {[%clk 0:02:23]}  Bc8 {[%clk 0:02:17]} 16. b5 {[%clk 0:02:23]}  gxf4 {[%clk 0:02:13]} 17. exf4 {[%clk 0:02:20]}  Nac5 {[%clk 0:01:47]} 18. f3 {[%clk 0:02:14]}  Qb6 {[%clk 0:01:47]} 19. Qd4 {[%clk 0:02:09]}  f6 {[%clk 0:01:34]} 20. fxe4 {[%clk 0:01:44]}  Nxa4 {[%clk 0:01:22]} 21. Qxb6 {[%clk 0:01:40]}  Nxb6 {[%clk 0:01:23]} 22. Ng4 {[%clk 0:01:11]}  dxe4 {[%clk 0:01:17]} 23. f5 {[%clk 0:01:11]}  h5 {[%clk 0:01:12]} 24. Ne3 {[%clk 0:01:05]}  Bh6 {[%clk 0:01:12]} 25. Rc3 {[%clk 0:00:58]}  e6 {[%clk 0:01:01]} 26. Bxh5 {[%clk 0:00:50]}  Nd5 {[%clk 0:00:56]} 27. Nxd5 {[%clk 0:00:44]}  exd5 {[%clk 0:00:57]} 28. Rg3+ {[%clk 0:00:44]}  Kh8 {[%clk 0:00:55]} 29. Nc3 {[%clk 0:00:45]}  Rd8 {[%clk 0:00:50]} 30. Bf7 {[%clk 0:00:43]}  a4 {[%clk 0:00:34]} 31. Nxd5 {[%clk 0:00:38]}  a3 {[%clk 0:00:32]} 32. Rxa3 {[%clk 0:00:36]}  Rxa3 {[%clk 0:00:31]} 33. bxa3 {[%clk 0:00:37]}  Kg7 {[%clk 0:00:27]} 34. c7 {[%clk 0:00:28]}  Rd6 {[%clk 0:00:25]} 35. Be6 {[%clk 0:00:26]}  Bb7 {[%clk 0:00:21]} 36. Re1 {[%clk 0:00:15]}  e3 {[%clk 0:00:18]} 37. h4 {[%clk 0:00:14]}  Kf8 {[%clk 0:00:10]} 38. Rc1 {[%clk 0:00:14]}  e2 {[%clk 0:00:09]} 39. Re1 {[%clk 0:00:14]}  Kg7 {[%clk 0:00:06]} 40. Rxe2 {[%clk 0:00:14]}  Bc1 {[%clk 0:00:05]} 41. Rc2 {[%clk 0:00:14]}  Bxa3 {[%clk 0:00:04]} 42. c8=Q {[%clk 0:00:15]}  Bxc8 {[%clk 0:00:05]} 43. Rxc8 {[%clk 0:00:16]}  Bb2 {[%clk 0:00:03]} 44. b6 {[%clk 0:00:15]}  Bd4+ {[%clk 0:00:01]} 45. Kh2 {[%clk 0:00:16]}  Bxb6 {[%clk 0:00:02]} 46. Nxb6 {[%clk 0:00:15]}  Rxb6 {[%clk 0:00:03]} 47. Kh3 {[%clk 0:00:14]}  Rb4 {[%clk 0:00:02]} 48. g3 {[%clk 0:00:14]}  Rd4 {[%clk 0:00:00]} 49. Rc7+ {[%clk 0:00:15]} 1-0


[Site "https://www.chess.com"]

[Event "Titled Tuesday Blitz May 30 Early 2023"]
[White "Ehlvest, Jaan"]
[Black "Moral Garcia, Serafin"]
[WhiteFideId "4500016"]
[BlackFideId "2201925"]
[WhiteElo "2442"]
[BlackElo "2274"]
[Result "1-0"]
[Round "09"]
[TimeControl "180+2"]
[Date "2023.05.30"]
[WhiteClock "0:00:33"]
[BlackClock "0:00:39"]

1. e4 {[%clk 0:02:54]}  e5 {[%clk 0:02:55]} 2. Nf3 {[%clk 0:02:53]}  Nf6 {[%clk 0:02:51]} 3. Nxe5 {[%clk 0:02:52]}  d6 {[%clk 0:02:51]} 4. Nf3 {[%clk 0:02:52]}  Nxe4 {[%clk 0:02:51]} 5. d3 {[%clk 0:02:53]}  Nf6 {[%clk 0:02:51]} 6. d4 {[%clk 0:02:53]}  d5 {[%clk 0:02:49]} 7. Bd3 {[%clk 0:02:53]}  Nc6 {[%clk 0:02:43]} 8. O-O {[%clk 0:02:46]}  Be7 {[%clk 0:02:41]} 9. h3 {[%clk 0:02:44]}  Nb4 {[%clk 0:02:36]} 10. Bb5+ {[%clk 0:02:38]}  Bd7 {[%clk 0:02:33]} 11. Bxd7+ {[%clk 0:02:28]}  Qxd7 {[%clk 0:02:32]} 12. Ne5 {[%clk 0:02:26]}  Qe6 {[%clk 0:02:21]} 13. Re1 {[%clk 0:02:20]}  Qd6 {[%clk 0:02:13]} 14. Bf4 {[%clk 0:02:16]}  Qd8 {[%clk 0:02:09]} 15. c3 {[%clk 0:02:09]}  Na6 {[%clk 0:02:08]} 16. Qa4+ {[%clk 0:02:02]}  Nd7 {[%clk 0:02:04]} 17. Nd2 {[%clk 0:01:55]}  f6 {[%clk 0:01:57]} 18. Nc6 {[%clk 0:01:39]}  bxc6 {[%clk 0:01:56]} 19. Qxc6 {[%clk 0:01:28]}  O-O {[%clk 0:01:38]} 20. Qxa6 {[%clk 0:01:23]}  Nb6 {[%clk 0:01:38]} 21. a4 {[%clk 0:01:22]}  Bd6 {[%clk 0:01:33]} 22. Bxd6 {[%clk 0:01:15]}  Qxd6 {[%clk 0:01:33]} 23. a5 {[%clk 0:01:15]}  Nc8 {[%clk 0:01:32]} 24. Qxd6 {[%clk 0:01:05]}  Nxd6 {[%clk 0:01:32]} 25. Re7 {[%clk 0:01:03]}  Rf7 {[%clk 0:01:32]} 26. Re3 {[%clk 0:00:59]}  Rb8 {[%clk 0:01:31]} 27. b3 {[%clk 0:00:57]}  Kf8 {[%clk 0:01:29]} 28. Kf1 {[%clk 0:00:56]}  Re7 {[%clk 0:01:28]} 29. Ke2 {[%clk 0:00:54]}  Nb5 {[%clk 0:01:24]} 30. Rxe7 {[%clk 0:00:52]}  Kxe7 {[%clk 0:01:23]} 31. Kd3 {[%clk 0:00:52]}  Nd6 {[%clk 0:01:19]} 32. h4 {[%clk 0:00:44]}  Kd7 {[%clk 0:01:17]} 33. g3 {[%clk 0:00:44]}  c6 {[%clk 0:01:10]} 34. c4 {[%clk 0:00:43]}  dxc4+ {[%clk 0:01:06]} 35. bxc4 {[%clk 0:00:42]}  Rb2 {[%clk 0:01:04]} 36. Kc3 {[%clk 0:00:40]}  Rb8 {[%clk 0:01:03]} 37. Re1 {[%clk 0:00:40]}  Rc8 {[%clk 0:00:59]} 38. Nb3 {[%clk 0:00:39]}  Rc7 {[%clk 0:00:50]} 39. Nc5+ {[%clk 0:00:38]}  Kc8 {[%clk 0:00:49]} 40. h5 {[%clk 0:00:37]}  Kb8 {[%clk 0:00:39]} 41. Na6+ {[%clk 0:00:33]} 1-0


[Site "https://www.chess.com"]

[Event "Titled Tuesday Blitz May 30 Early 2023"]
[White "Sanhueza, Cristian"]
[Black "MaryanKyrychenko"]
[WhiteFideId "116815"]
[WhiteElo "2174"]
[BlackElo "2643"]
[Result "1-0"]
[Round "09"]
[TimeControl "180+2"]
[Date "2023.05.30"]
[WhiteClock "0:00:10"]
[BlackClock "0:00:00"]

1. e4 {[%clk 0:02:58]}  c5 {[%clk 0:02:59]} 2. Nf3 {[%clk 0:02:58]}  d6 {[%clk 0:02:59]} 3. d4 {[%clk 0:02:58]}  cxd4 {[%clk 0:03:00]} 4. Nxd4 {[%clk 0:02:59]}  Nf6 {[%clk 0:03:01]} 5. Nc3 {[%clk 0:03:00]}  g6 {[%clk 0:03:01]} 6. Be3 {[%clk 0:02:59]}  Bg7 {[%clk 0:03:02]} 7. f3 {[%clk 0:02:59]}  O-O {[%clk 0:03:03]} 8. Qd2 {[%clk 0:03:00]}  Nc6 {[%clk 0:03:03]} 9. Bc4 {[%clk 0:02:58]}  Bd7 {[%clk 0:03:00]} 10. O-O-O {[%clk 0:02:58]}  b5 {[%clk 0:03:00]} 11. Nxc6 {[%clk 0:02:34]}  Bxc6 {[%clk 0:02:48]} 12. Bxb5 {[%clk 0:02:33]}  Bxb5 {[%clk 0:02:48]} 13. Nxb5 {[%clk 0:02:34]}  Rb8 {[%clk 0:02:49]} 14. Nd4 {[%clk 0:02:32]}  Qd7 {[%clk 0:02:12]} 15. Nb3 {[%clk 0:02:01]}  Rfc8 {[%clk 0:02:10]} 16. Kb1 {[%clk 0:01:57]}  Qb7 {[%clk 0:01:49]} 17. Bd4 {[%clk 0:01:53]}  h5 {[%clk 0:01:31]} 18. h4 {[%clk 0:01:49]}  Rc4 {[%clk 0:01:20]} 19. Na5 {[%clk 0:01:11]}  Nxe4 {[%clk 0:00:20]} 20. fxe4 {[%clk 0:01:02]}  Qxb2+ {[%clk 0:00:12]} 21. Bxb2 {[%clk 0:01:01]}  Rxb2+ {[%clk 0:00:10]} 22. Kc1 {[%clk 0:00:51]}  Rxa2 {[%clk 0:00:09]} 23. Nb3 {[%clk 0:00:38]}  Rca4 {[%clk 0:00:08]} 24. Qd5 {[%clk 0:00:28]}  Bc3 {[%clk 0:00:05]} 25. Qb5 {[%clk 0:00:12]}  Rb4 {[%clk 0:00:02]} 26. Qe8+ {[%clk 0:00:09]}  Kg7 {[%clk 0:00:00]} 27. Rhf1 {[%clk 0:00:10]} 1-0


[Site "https://www.chess.com"]